[Event "Late-Titled-Tuesday-Blitz-February-13-2024"]
[Site "Chess.com"]
[Date "2024.02.13"]
[Round "6"]
[White "lucasran"]
[Black "korkmaz16"]
[Result "0-1"]
[WhiteElo "2649"]
[BlackElo "2442"]
[TimeControl "180+1"]
[EndTime "15:06:45 PST"]
[Termination "korkmaz16 won on time"]

1. Nf3 {[%clk 0:02:59.7]} 1... d5 {[%clk 0:02:59.5]} 2. d4 {[%clk 0:03:00.1]}
2... Nf6 {[%clk 0:02:59.4]} 3. c4 {[%clk 0:03:00.7]} 3... c6 {[%clk 0:02:59.5]}
4. e3 {[%clk 0:03:00.4]} 4... e6 {[%clk 0:02:58.7]} 5. Bd3 {[%clk 0:02:58.8]}
5... Nbd7 {[%clk 0:02:57.6]} 6. O-O {[%clk 0:02:59.1]} 6... Bd6 {[%clk
0:02:57.9]} 7. Nbd2 {[%clk 0:02:59.4]} 7... O-O {[%clk 0:02:57.8]} 8. e4 {[%clk
0:02:57.4]} 8... dxe4 {[%clk 0:02:57.9]} 9. Nxe4 {[%clk 0:02:58.3]} 9... Nxe4
{[%clk 0:02:58.5]} 10. Bxe4 {[%clk 0:02:58.7]} 10... h6 {[%clk 0:02:59.1]} 11.
Be3 {[%clk 0:02:55.3]} 11... e5 {[%clk 0:02:53.1]} 12. c5 {[%clk 0:02:40.7]}
12... Bc7 {[%clk 0:02:52.4]} 13. d5 {[%clk 0:02:33.5]} 13... Nf6 {[%clk
0:02:34.8]} 14. d6 {[%clk 0:02:32.9]} 14... Nxe4 {[%clk 0:02:34.7]} 15. dxc7
{[%clk 0:02:32.4]} 15... Qxc7 {[%clk 0:02:34.7]} 16. Qa4 {[%clk 0:02:14.4]}
16... Nf6 {[%clk 0:02:27.6]} 17. Rfe1 {[%clk 0:02:03.5]} 17... Re8 {[%clk
0:02:19.2]} 18. Nd2 {[%clk 0:02:03.1]} 18... Bf5 {[%clk 0:02:13.1]} 19. Nc4
{[%clk 0:02:01.6]} 19... b5 {[%clk 0:02:02.7]} 20. cxb6 {[%clk 0:02:01.1]} 20...
axb6 {[%clk 0:02:03.2]} 21. Qb4 {[%clk 0:01:20.2]} 21... Nd5 {[%clk 0:02:01.5]}
22. Qd6 {[%clk 0:01:20.3]} 22... Qb7 {[%clk 0:01:17.1]} 23. Nxe5 {[%clk
0:01:10]} 23... Re6 {[%clk 0:01:16.4]} 24. Qd7 {[%clk 0:01:08.5]} 24... Qxd7
{[%clk 0:01:13.3]} 25. Nxd7 {[%clk 0:01:09.4]} 25... Rxe3 {[%clk 0:01:10.9]} 26.
fxe3 {[%clk 0:01:01.6]} 26... Bxd7 {[%clk 0:01:10.6]} 27. a3 {[%clk 0:00:59.5]}
27... Be6 {[%clk 0:01:07.3]} 28. e4 {[%clk 0:00:39]} 28... Nf4 {[%clk
0:01:06.3]} 29. Rad1 {[%clk 0:00:39.5]} 29... c5 {[%clk 0:00:59]} 30. Rd2 {[%clk
0:00:31]} 30... c4 {[%clk 0:00:57.9]} 31. Rd6 {[%clk 0:00:22.8]} 31... b5 {[%clk
0:00:57]} 32. Rb6 {[%clk 0:00:18.7]} 32... Ra5 {[%clk 0:00:55]} 33. g3 {[%clk
0:00:12.4]} 33... Nd3 {[%clk 0:00:54.4]} 34. Re2 {[%clk 0:00:13.1]} 34... c3
{[%clk 0:00:48.5]} 35. bxc3 {[%clk 0:00:13.1]} 35... Bc4 {[%clk 0:00:48.4]} 36.
Rc2 {[%clk 0:00:03.5]} 36... Rxa3 {[%clk 0:00:48]} 37. Re2 {[%clk 0:00:01.4]}
37... Ra1+ {[%clk 0:00:43.7]} 38. Kg2 {[%clk 0:00:01.9]} 38... Ne1+ {[%clk
0:00:44.2]} 0-1

[Event "Late-Titled-Tuesday-Blitz-February-13-2024"]
[Site "Chess.com"]
[Date "2024.02.13"]
[Round "6"]
[White "jcmesafischer"]
[Black "ImportedItalianMaple"]
[Result "1-0"]
[WhiteElo "2372"]
[BlackElo "2513"]
[TimeControl "180+1"]
[EndTime "15:06:45 PST"]
[Termination "jcmesafischer won on time"]

1. e4 {[%clk 0:01:22.4]} 1... g6 {[%clk 0:02:57.7]} 2. d4 {[%clk 0:01:20.1]}
2... Bg7 {[%clk 0:02:58.1]} 3. Nc3 {[%clk 0:01:19.1]} 3... d5 {[%clk 0:02:58.6]}
4. exd5 {[%clk 0:01:17]} 4... Nf6 {[%clk 0:02:59]} 5. h3 {[%clk 0:01:14.1]} 5...
O-O {[%clk 0:02:56.2]} 6. Bc4 {[%clk 0:01:08.4]} 6... Nbd7 {[%clk 0:02:45.9]} 7.
Qf3 {[%clk 0:01:04.9]} 7... Nb6 {[%clk 0:02:45.1]} 8. Bb3 {[%clk 0:01:04.6]}
8... e6 {[%clk 0:02:38.9]} 9. dxe6 {[%clk 0:00:58.9]} 9... Bxe6 {[%clk 0:02:39]}
10. Bxe6 {[%clk 0:00:58]} 10... Re8 {[%clk 0:02:39.6]} 11. Be3 {[%clk
0:00:56.7]} 11... Rxe6 {[%clk 0:02:39.1]} 12. Nge2 {[%clk 0:00:52.8]} 12... Nc4
{[%clk 0:02:38.7]} 13. O-O {[%clk 0:00:24.4]} 13... Qe8 {[%clk 0:01:52.3]} 14.
Bg5 {[%clk 0:00:09.2]} 14... c6 {[%clk 0:01:31.8]} 15. Nf4 {[%clk 0:00:09.1]}
15... Rd6 {[%clk 0:01:11.2]} 16. Rfe1 {[%clk 0:00:07.8]} 16... Qd7 {[%clk
0:01:07.5]} 17. d5 {[%clk 0:00:05.9]} 17... Nxd5 {[%clk 0:01:04.2]} 18. Ncxd5
{[%clk 0:00:03.1]} 18... cxd5 {[%clk 0:01:05.1]} 19. Rad1 {[%clk 0:00:02.6]}
19... Nxb2 {[%clk 0:00:57.2]} 20. Rxd5 {[%clk 0:00:02.9]} 20... Nc4 {[%clk
0:00:46.5]} 21. Re7 {[%clk 0:00:02.4]} 21... Qd8 {[%clk 0:00:30.8]} 22. Nxg6
{[%clk 0:00:01.9]} 22... Ne5 {[%clk 0:00:17.4]} 23. Nxe5 {[%clk 0:00:01.4]}
23... Rxd5 {[%clk 0:00:18.3]} 24. Qxf7+ {[%clk 0:00:01.6]} 1-0

[Event "Late-Titled-Tuesday-Blitz-February-13-2024"]
[Site "Chess.com"]
[Date "2024.02.13"]
[Round "6"]
[White "Inepton_Fermion"]
[Black "Atousa"]
[Result "0-1"]
[WhiteElo "2373"]
[BlackElo "2534"]
[TimeControl "180+1"]
[EndTime "15:06:49 PST"]
[Termination "Atousa won on time"]

1. Nf3 {[%clk 0:02:45.1]} 1... d5 {[%clk 0:02:47.5]} 2. b3 {[%clk 0:02:45.3]}
2... Nf6 {[%clk 0:02:46.4]} 3. Bb2 {[%clk 0:02:45.6]} 3... e6 {[%clk 0:02:47.3]}
4. e3 {[%clk 0:02:41.3]} 4... c5 {[%clk 0:02:47.5]} 5. c4 {[%clk 0:02:41.7]}
5... Nc6 {[%clk 0:02:47.8]} 6. cxd5 {[%clk 0:02:41.3]} 6... Nxd5 {[%clk
0:02:48.6]} 7. Be2 {[%clk 0:02:30]} 7... Ke7 {[%clk 0:02:42.2]} 8. O-O {[%clk
0:02:27.6]} 8... f6 {[%clk 0:02:39.9]} 9. d4 {[%clk 0:02:25.7]} 9... Kf7 {[%clk
0:02:37.7]} 10. Nc3 {[%clk 0:02:23.9]} 10... Be7 {[%clk 0:02:34.3]} 11. Rc1
{[%clk 0:02:04.4]} 11... Re8 {[%clk 0:02:31.8]} 12. Nxd5 {[%clk 0:02:03.6]}
12... Qxd5 {[%clk 0:02:31]} 13. dxc5 {[%clk 0:02:03.6]} 13... Rd8 {[%clk
0:01:56.5]} 14. Qc2 {[%clk 0:01:53.8]} 14... Qf5 {[%clk 0:01:46.9]} 15. e4
{[%clk 0:01:21.1]} 15... Qg6 {[%clk 0:01:43.2]} 16. Rfd1 {[%clk 0:01:14.1]}
16... Bd7 {[%clk 0:01:43]} 17. Bc4 {[%clk 0:01:12.4]} 17... Bxc5 {[%clk
0:01:33.3]} 18. Bd3 {[%clk 0:00:38.4]} 18... Bb6 {[%clk 0:01:21.3]} 19. e5
{[%clk 0:00:38.5]} 19... f5 {[%clk 0:01:21.5]} 20. Bc4 {[%clk 0:00:34.9]} 20...
Nb4 {[%clk 0:01:05.6]} 21. Qe2 {[%clk 0:00:34]} 21... Bc6 {[%clk 0:01:02.3]} 22.
g3 {[%clk 0:00:20.2]} 22... Nxa2 {[%clk 0:00:57]} 23. Ra1 {[%clk 0:00:15.5]}
23... Nb4 {[%clk 0:00:57]} 24. Nh4 {[%clk 0:00:07]} 24... Qg5 {[%clk 0:00:45.4]}
25. Bc1 {[%clk 0:00:04.2]} 25... Qg4 {[%clk 0:00:45.4]} 26. Qxg4 {[%clk
0:00:03.1]} 26... fxg4 {[%clk 0:00:45.7]} 27. Rxd8 {[%clk 0:00:02.2]} 27... Rxd8
{[%clk 0:00:45.1]} 28. Bg5 {[%clk 0:00:02.8]} 28... Rc8 {[%clk 0:00:38.7]} 29.
Ng2 {[%clk 0:00:03.3]} 29... Bxg2 {[%clk 0:00:29.9]} 30. Kxg2 {[%clk 0:00:03.4]}
30... Nd5 {[%clk 0:00:30.7]} 31. Rd1 {[%clk 0:00:03]} 31... h6 {[%clk
0:00:27.9]} 32. Bc1 {[%clk 0:00:01.5]} 32... Nc3 {[%clk 0:00:27.3]} 33. Rd7+
{[%clk 0:00:01.3]} 33... Kg8 {[%clk 0:00:17.9]} 34. Bxe6+ {[%clk 0:00:01.1]}
34... Kh8 {[%clk 0:00:18.5]} 0-1

[Event "Late-Titled-Tuesday-Blitz-February-13-2024"]
[Site "Chess.com"]
[Date "2024.02.13"]
[Round "6"]
[White "Jaka_Brilej"]
[Black "GothamChess"]
[Result "0-1"]
[WhiteElo "2532"]
[BlackElo "2714"]
[TimeControl "180+1"]
[EndTime "15:06:51 PST"]
[Termination "GothamChess won by resignation"]

1. e4 {[%clk 0:03:00.9]} 1... d5 {[%clk 0:03:00.6]} 2. exd5 {[%clk 0:02:59.1]}
2... Qxd5 {[%clk 0:03:01.5]} 3. Nc3 {[%clk 0:02:59.1]} 3... Qa5 {[%clk
0:03:02.2]} 4. d4 {[%clk 0:02:55.6]} 4... Nf6 {[%clk 0:03:01.8]} 5. Nf3 {[%clk
0:02:55.7]} 5... Bf5 {[%clk 0:03:00.7]} 6. Bd2 {[%clk 0:02:55.6]} 6... e6 {[%clk
0:02:55.5]} 7. Bc4 {[%clk 0:02:55.4]} 7... Bb4 {[%clk 0:02:54.9]} 8. a3 {[%clk
0:02:48.5]} 8... Bxc3 {[%clk 0:02:52.4]} 9. Bxc3 {[%clk 0:02:49.4]} 9... Qb6
{[%clk 0:02:52.2]} 10. O-O {[%clk 0:02:37.3]} 10... Nc6 {[%clk 0:02:45.5]} 11.
Ne5 {[%clk 0:02:29.4]} 11... O-O {[%clk 0:02:38.4]} 12. Nxc6 {[%clk 0:02:05.7]}
12... Qxc6 {[%clk 0:02:39.3]} 13. Qe2 {[%clk 0:02:06.1]} 13... Bxc2 {[%clk
0:02:11.9]} 14. d5 {[%clk 0:01:48.1]} 14... exd5 {[%clk 0:02:05.7]} 15. Bb5
{[%clk 0:01:47.7]} 15... Qb6 {[%clk 0:01:54.1]} 16. Bxf6 {[%clk 0:01:35.3]}
16... gxf6 {[%clk 0:01:50.3]} 17. Qxc2 {[%clk 0:01:35.5]} 17... Qxb5 {[%clk
0:01:50.6]} 18. Qxc7 {[%clk 0:01:36]} 18... Qxb2 {[%clk 0:01:38.6]} 19. Rab1
{[%clk 0:01:29.7]} 19... Qxa3 {[%clk 0:01:35.1]} 20. Rxb7 {[%clk 0:01:28.8]}
20... a5 {[%clk 0:01:29.5]} 21. h3 {[%clk 0:01:27.3]} 21... Ra6 {[%clk
0:01:17.9]} 22. Rfb1 {[%clk 0:01:20.1]} 22... a4 {[%clk 0:01:13.9]} 23. Rb8
{[%clk 0:01:15.3]} 23... Qd6 {[%clk 0:01:01.3]} 24. Rxf8+ {[%clk 0:01:10.3]}
24... Kxf8 {[%clk 0:01:01.7]} 25. Rb8+ {[%clk 0:01:08.3]} 25... Kg7 {[%clk
0:01:01.1]} 26. Qxd6 {[%clk 0:00:53.5]} 26... Rxd6 {[%clk 0:01:00.7]} 27. Ra8
{[%clk 0:00:54.4]} 27... f5 {[%clk 0:00:42.5]} 28. Rxa4 {[%clk 0:00:53.1]} 28...
Kf6 {[%clk 0:00:41.7]} 29. Kf1 {[%clk 0:00:49.9]} 29... Ke5 {[%clk 0:00:37.5]}
30. Rh4 {[%clk 0:00:49.4]} 30... h6 {[%clk 0:00:35.6]} 31. Ke2 {[%clk
0:00:49.5]} 31... Ra6 {[%clk 0:00:32.5]} 32. Rh5 {[%clk 0:00:35.2]} 32... d4
{[%clk 0:00:31.4]} 33. g4 {[%clk 0:00:33.2]} 33... Ra2+ {[%clk 0:00:24.8]} 34.
Ke1 {[%clk 0:00:33.4]} 34... Ke4 {[%clk 0:00:23.3]} 35. Rxf5 {[%clk 0:00:30.9]}
35... Kd3 {[%clk 0:00:20.6]} 36. Rf3+ {[%clk 0:00:25.2]} 36... Kc2 {[%clk
0:00:19.3]} 37. Ke2 {[%clk 0:00:20.1]} 37... Ra7 {[%clk 0:00:19.3]} 38. Rxf7
{[%clk 0:00:16.8]} 38... Rxf7 {[%clk 0:00:19.3]} 0-1

[Event "Late-Titled-Tuesday-Blitz-February-13-2024"]
[Site "Chess.com"]
[Date "2024.02.13"]
[Round "6"]
[White "sansanathalia"]
[Black "Dewarfd"]
[Result "1-0"]
[WhiteElo "2384"]
[BlackElo "2160"]
[TimeControl "180+1"]
[EndTime "15:06:59 PST"]
[Termination "sansanathalia won on time"]

1. e4 {[%clk 0:03:00.9]} 1... c5 {[%clk 0:02:58.3]} 2. Nf3 {[%clk 0:03:00.1]}
2... g6 {[%clk 0:02:58.2]} 3. c3 {[%clk 0:02:53.7]} 3... d5 {[%clk 0:02:58]} 4.
exd5 {[%clk 0:02:50.3]} 4... Qxd5 {[%clk 0:02:58.9]} 5. d4 {[%clk 0:02:50]} 5...
Bg7 {[%clk 0:02:58.9]} 6. Na3 {[%clk 0:02:49.5]} 6... Nf6 {[%clk 0:02:57.2]} 7.
Bc4 {[%clk 0:02:50]} 7... Qe4+ {[%clk 0:02:56.5]} 8. Be3 {[%clk 0:02:50.6]} 8...
cxd4 {[%clk 0:02:56.4]} 9. Bxf7+ {[%clk 0:02:49.2]} 9... Kf8 {[%clk 0:02:46.3]}
10. cxd4 {[%clk 0:02:47.2]} 10... Bg4 {[%clk 0:02:39.9]} 11. Bc4 {[%clk
0:02:43]} 11... Bxf3 {[%clk 0:02:36.4]} 12. Qxf3 {[%clk 0:02:39.7]} 12... Qxf3
{[%clk 0:02:36.2]} 13. gxf3 {[%clk 0:02:37.9]} 13... Nc6 {[%clk 0:02:32.8]} 14.
O-O {[%clk 0:02:33.8]} 14... a6 {[%clk 0:02:29.9]} 15. Rfd1 {[%clk 0:02:25.9]}
15... Rd8 {[%clk 0:02:27.7]} 16. Nc2 {[%clk 0:02:19.6]} 16... Nd7 {[%clk
0:02:23]} 17. Rd3 {[%clk 0:02:13.5]} 17... Nb6 {[%clk 0:02:11.5]} 18. Bb3 {[%clk
0:02:10.6]} 18... Nd5 {[%clk 0:02:02.5]} 19. Bd2 {[%clk 0:02:05.6]} 19... e6
{[%clk 0:01:58.5]} 20. Re1 {[%clk 0:02:03.4]} 20... Kf7 {[%clk 0:01:55]} 21. Bc3
{[%clk 0:01:59.3]} 21... Rhe8 {[%clk 0:01:48.9]} 22. Bd2 {[%clk 0:01:34]} 22...
h6 {[%clk 0:01:42.9]} 23. Re4 {[%clk 0:01:14.6]} 23... g5 {[%clk 0:01:38.4]} 24.
Kg2 {[%clk 0:00:51.8]} 24... Bf6 {[%clk 0:01:01.2]} 25. a3 {[%clk 0:00:38.4]}
25... Kg6 {[%clk 0:00:58.9]} 26. Re1 {[%clk 0:00:34.2]} 26... e5 {[%clk
0:00:54]} 27. Re4 {[%clk 0:00:17.4]} 27... Nxd4 {[%clk 0:00:13]} 28. Nxd4 {[%clk
0:00:12.7]} 28... exd4 {[%clk 0:00:01.3]} 29. Rxe8 {[%clk 0:00:12.1]} 29... Rxe8
{[%clk 0:00:01.6]} 30. Bxd5 {[%clk 0:00:12.3]} 30... Re2 {[%clk 0:00:01.2]} 31.
Be4+ {[%clk 0:00:11]} 1-0

[Event "Late-Titled-Tuesday-Blitz-February-13-2024"]
[Site "Chess.com"]
[Date "2024.02.13"]
[Round "6"]
[White "KacperKacprzak"]
[Black "GM4life"]
[Result "1-0"]
[WhiteElo "2720"]
[BlackElo "2545"]
[TimeControl "180+1"]
[EndTime "15:07:04 PST"]
[Termination "KacperKacprzak won by resignation"]

1. e4 {[%clk 0:03:00.9]} 1... d6 {[%clk 0:02:58.6]} 2. d4 {[%clk 0:03:00.4]}
2... Nc6 {[%clk 0:02:58]} 3. d5 {[%clk 0:02:57.1]} 3... Nb8 {[%clk 0:02:57]} 4.
Nf3 {[%clk 0:02:54.4]} 4... Nf6 {[%clk 0:02:56.6]} 5. Nc3 {[%clk 0:02:53.6]}
5... g6 {[%clk 0:02:57.1]} 6. Bd3 {[%clk 0:02:53.8]} 6... Bg7 {[%clk 0:02:57.6]}
7. O-O {[%clk 0:02:54.2]} 7... O-O {[%clk 0:02:58.2]} 8. Re1 {[%clk 0:02:55.1]}
8... c6 {[%clk 0:02:57.7]} 9. h3 {[%clk 0:02:54.8]} 9... cxd5 {[%clk 0:02:57.4]}
10. exd5 {[%clk 0:02:55.7]} 10... a6 {[%clk 0:02:57.6]} 11. Bg5 {[%clk
0:02:54.8]} 11... Nbd7 {[%clk 0:02:57.6]} 12. Qd2 {[%clk 0:02:54.8]} 12... b5
{[%clk 0:02:57.6]} 13. Bh6 {[%clk 0:02:53.7]} 13... Bb7 {[%clk 0:02:57.4]} 14.
Bxg7 {[%clk 0:02:53.3]} 14... Kxg7 {[%clk 0:02:58]} 15. Nd4 {[%clk 0:02:13.7]}
15... b4 {[%clk 0:02:43.3]} 16. Nd1 {[%clk 0:02:13.3]} 16... Nxd5 {[%clk
0:02:41.6]} 17. Qg5 {[%clk 0:02:11.9]} 17... e6 {[%clk 0:02:37.2]} 18. Qg3
{[%clk 0:02:06.6]} 18... Ne5 {[%clk 0:02:36]} 19. f4 {[%clk 0:02:01]} 19... Nxd3
{[%clk 0:02:33.2]} 20. cxd3 {[%clk 0:02:00.6]} 20... Qb6 {[%clk 0:02:31.9]} 21.
Qf2 {[%clk 0:02:00.4]} 21... Rac8 {[%clk 0:02:25.3]} 22. Re4 {[%clk 0:01:52.2]}
22... Rfe8 {[%clk 0:01:47.8]} 23. Kh2 {[%clk 0:01:49.1]} 23... Qc5 {[%clk
0:01:33.2]} 24. Qg3 {[%clk 0:01:46.2]} 24... Nf6 {[%clk 0:01:31.9]} 25. Nb3
{[%clk 0:01:45.1]} 25... Nxe4 {[%clk 0:01:17.8]} 26. dxe4 {[%clk 0:01:29]} 26...
Qc2 {[%clk 0:01:09.1]} 27. Ne3 {[%clk 0:01:19.3]} 27... Qxe4 {[%clk 0:01:08.8]}
28. Re1 {[%clk 0:01:17.8]} 28... Qd3 {[%clk 0:00:59.5]} 29. Qh4 {[%clk
0:01:13.2]} 29... h5 {[%clk 0:00:46.2]} 30. Qg3 {[%clk 0:01:00.2]} 30... Qb5
{[%clk 0:00:42.3]} 31. f5 {[%clk 0:00:49.9]} 31... exf5 {[%clk 0:00:40.3]} 32.
Nd4 {[%clk 0:00:48]} 32... Rxe3 {[%clk 0:00:23.6]} 33. Rxe3 {[%clk 0:00:38.6]}
33... Qd5 {[%clk 0:00:23.3]} 34. Ne2 {[%clk 0:00:22.3]} 34... h4 {[%clk
0:00:20.6]} 35. Qg5 {[%clk 0:00:15.6]} 35... f6 {[%clk 0:00:18.1]} 36. Re7+
{[%clk 0:00:14.7]} 36... Qf7 {[%clk 0:00:11.8]} 37. Rxf7+ {[%clk 0:00:14.9]}
37... Kxf7 {[%clk 0:00:12.7]} 38. Qxh4 {[%clk 0:00:10.9]} 38... Be4 {[%clk
0:00:13.3]} 39. Ng3 {[%clk 0:00:10.3]} 39... Bd5 {[%clk 0:00:13]} 40. Qh7+
{[%clk 0:00:10.3]} 40... Ke6 {[%clk 0:00:13.5]} 41. Qxg6 {[%clk 0:00:11.2]}
41... f4 {[%clk 0:00:12.6]} 42. Qf5+ {[%clk 0:00:11.3]} 1-0

[Event "Late-Titled-Tuesday-Blitz-February-13-2024"]
[Site "Chess.com"]
[Date "2024.02.13"]
[Round "6"]
[White "Grischuk"]
[Black "tptagain"]
[Result "1-0"]
[WhiteElo "3094"]
[BlackElo "2862"]
[TimeControl "180+1"]
[EndTime "15:07:06 PST"]
[Termination "Grischuk won by checkmate"]

1. d4 {[%clk 0:03:00.9]} 1... d5 {[%clk 0:02:59.8]} 2. c4 {[%clk 0:03:00.5]}
2... e6 {[%clk 0:03:00.2]} 3. Nc3 {[%clk 0:02:59.3]} 3... c6 {[%clk 0:03:00.6]}
4. Nf3 {[%clk 0:02:45.4]} 4... dxc4 {[%clk 0:02:59]} 5. e4 {[%clk 0:02:43]} 5...
b5 {[%clk 0:02:58.2]} 6. a4 {[%clk 0:02:42.9]} 6... Bb4 {[%clk 0:02:56.6]} 7.
Be2 {[%clk 0:02:42.5]} 7... Bb7 {[%clk 0:02:56.2]} 8. O-O {[%clk 0:02:41.9]}
8... a6 {[%clk 0:02:54.3]} 9. Bg5 {[%clk 0:02:38.3]} 9... Ne7 {[%clk 0:02:13.8]}
10. e5 {[%clk 0:02:22.5]} 10... h6 {[%clk 0:02:11.3]} 11. Bh4 {[%clk 0:01:59.1]}
11... g5 {[%clk 0:01:57.6]} 12. Bg3 {[%clk 0:01:50.4]} 12... Nf5 {[%clk
0:01:57.3]} 13. Ne4 {[%clk 0:01:50.1]} 13... Nd7 {[%clk 0:01:55.2]} 14. b3
{[%clk 0:01:43]} 14... c5 {[%clk 0:01:31.9]} 15. Nd6+ {[%clk 0:01:42.8]} 15...
Nxd6 {[%clk 0:01:31.9]} 16. exd6 {[%clk 0:01:43.7]} 16... Bc3 {[%clk 0:01:32.4]}
17. bxc4 {[%clk 0:01:21.4]} 17... Bxa1 {[%clk 0:01:25.3]} 18. Qxa1 {[%clk
0:01:22.3]} 18... O-O {[%clk 0:01:23.6]} 19. cxb5 {[%clk 0:01:13.3]} 19... axb5
{[%clk 0:01:21.7]} 20. Bxb5 {[%clk 0:01:14.2]} 20... Bxf3 {[%clk 0:01:19.4]} 21.
gxf3 {[%clk 0:01:15.1]} 21... cxd4 {[%clk 0:01:02.7]} 22. Qxd4 {[%clk
0:01:12.8]} 22... Qf6 {[%clk 0:00:45.1]} 23. Qe3 {[%clk 0:01:09.7]} 23... Rfd8
{[%clk 0:00:42.1]} 24. Rc1 {[%clk 0:01:07.4]} 24... Qf5 {[%clk 0:00:31.6]} 25.
h4 {[%clk 0:00:21]} 25... Nf6 {[%clk 0:00:11.7]} 26. Rc5 {[%clk 0:00:19.7]}
26... Nd5 {[%clk 0:00:11.3]} 27. Qe4 {[%clk 0:00:20.3]} 27... Qh3 {[%clk
0:00:05.1]} 28. hxg5 {[%clk 0:00:10.8]} 28... hxg5 {[%clk 0:00:04.7]} 29. d7
{[%clk 0:00:11.4]} 29... Kg7 {[%clk 0:00:03]} 30. Rxd5 {[%clk 0:00:05.9]} 30...
Rh8 {[%clk 0:00:02.1]} 31. Rxg5+ {[%clk 0:00:04.9]} 31... Kh6 {[%clk 0:00:02.3]}
32. Rg4 {[%clk 0:00:03.3]} 32... f5 {[%clk 0:00:01.1]} 33. Qxe6+ {[%clk
0:00:03.1]} 33... Kh5 {[%clk 0:00:01]} 34. Qg6# {[%clk 0:00:04]} 1-0

[Event "Late-Titled-Tuesday-Blitz-February-13-2024"]
[Site "Chess.com"]
[Date "2024.02.13"]
[Round "6"]
[White "Championnn-9"]
[Black "Boninknights"]
[Result "1-0"]
[WhiteElo "2533"]
[BlackElo "2364"]
[TimeControl "180+1"]
[EndTime "15:07:09 PST"]
[Termination "Championnn-9 won by resignation"]

1. d4 {[%clk 0:03:00.9]} 1... Nf6 {[%clk 0:02:58.5]} 2. Bf4 {[%clk 0:03:01.2]}
2... d5 {[%clk 0:02:57.3]} 3. Nc3 {[%clk 0:02:59.8]} 3... c6 {[%clk 0:02:56.2]}
4. e3 {[%clk 0:02:59.3]} 4... Bf5 {[%clk 0:02:54.6]} 5. Nf3 {[%clk 0:02:58]}
5... h6 {[%clk 0:02:49.9]} 6. Ne5 {[%clk 0:02:56]} 6... Nbd7 {[%clk 0:02:47.2]}
7. Bd3 {[%clk 0:02:55.7]} 7... e6 {[%clk 0:02:40.3]} 8. Bxf5 {[%clk 0:02:45]}
8... exf5 {[%clk 0:02:39.1]} 9. Qd3 {[%clk 0:02:41]} 9... g6 {[%clk 0:02:37.5]}
10. h3 {[%clk 0:02:39]} 10... Bb4 {[%clk 0:02:32.3]} 11. f3 {[%clk 0:02:36.8]}
11... Qa5 {[%clk 0:02:26.2]} 12. O-O {[%clk 0:02:29.2]} 12... Bxc3 {[%clk
0:02:21.4]} 13. bxc3 {[%clk 0:02:30.1]} 13... Nh5 {[%clk 0:02:02.7]} 14. Nxd7
{[%clk 0:01:56.5]} 14... Nxf4 {[%clk 0:01:55.3]} 15. Nf6+ {[%clk 0:01:56.8]}
15... Ke7 {[%clk 0:01:55.4]} 16. exf4 {[%clk 0:01:57]} 16... Kxf6 {[%clk
0:01:55.4]} 17. Rae1 {[%clk 0:01:55.9]} 17... Rhe8 {[%clk 0:01:51.9]} 18. Re5
{[%clk 0:01:54.6]} 18... Qxa2 {[%clk 0:01:44.6]} 19. Rfe1 {[%clk 0:01:54.1]}
19... Re6 {[%clk 0:01:44.4]} 20. Rxe6+ {[%clk 0:01:47.5]} 20... fxe6 {[%clk
0:01:43.2]} 21. Qe2 {[%clk 0:01:48.1]} 21... Re8 {[%clk 0:01:39.8]} 22. Qe5+
{[%clk 0:01:46.7]} 22... Kf7 {[%clk 0:01:39.5]} 23. Re2 {[%clk 0:01:39.2]} 23...
Qc4 {[%clk 0:01:36.2]} 24. Re3 {[%clk 0:01:36.3]} 24... a5 {[%clk 0:01:34.2]}
25. Qc7+ {[%clk 0:01:35.8]} 25... Re7 {[%clk 0:01:29.6]} 26. Qxa5 {[%clk
0:01:35.1]} 26... b5 {[%clk 0:01:25.5]} 27. Kh2 {[%clk 0:01:28.9]} 27... c5
{[%clk 0:01:21.6]} 28. Rd3 {[%clk 0:01:17.5]} 28... cxd4 {[%clk 0:01:06.4]} 29.
cxd4 {[%clk 0:01:18.4]} 29... Qxc2 {[%clk 0:01:04.7]} 30. Qxb5 {[%clk
0:01:18.7]} 30... g5 {[%clk 0:01:01.1]} 31. fxg5 {[%clk 0:01:14.5]} 31... hxg5
{[%clk 0:01:00.8]} 32. Re3 {[%clk 0:01:14.4]} 32... Qd2 {[%clk 0:00:57.1]} 33.
Rd3 {[%clk 0:00:49.1]} 33... Qf4+ {[%clk 0:00:56.2]} 34. Kg1 {[%clk 0:00:40]}
34... Rc7 {[%clk 0:00:51.8]} 35. Rd1 {[%clk 0:00:38.5]} 35... Rc2 {[%clk
0:00:44.9]} 36. Qd7+ {[%clk 0:00:37.4]} 36... Kf6 {[%clk 0:00:43.8]} 37. Qd8+
{[%clk 0:00:37.3]} 37... Kg6 {[%clk 0:00:43.5]} 38. Qe8+ {[%clk 0:00:37]} 38...
Kf6 {[%clk 0:00:40.7]} 39. Qf8+ {[%clk 0:00:27.9]} 39... Kg6 {[%clk 0:00:39.8]}
40. Qg8+ {[%clk 0:00:28.1]} 40... Kf6 {[%clk 0:00:39.6]} 41. Re1 {[%clk
0:00:23.4]} 41... Qxd4+ {[%clk 0:00:32.6]} 42. Kh1 {[%clk 0:00:20.6]} 42... Re2
{[%clk 0:00:30.6]} 43. Qh8+ {[%clk 0:00:19.3]} 43... Kg6 {[%clk 0:00:29.7]} 44.
Qxd4 {[%clk 0:00:20]} 44... Rxe1+ {[%clk 0:00:29.5]} 45. Kh2 {[%clk 0:00:20.8]}
45... Rb1 {[%clk 0:00:25.9]} 46. Qe3 {[%clk 0:00:19.9]} 46... Kf6 {[%clk
0:00:21.4]} 47. Qc3+ {[%clk 0:00:20.5]} 47... e5 {[%clk 0:00:20.3]} 48. Qc6+
{[%clk 0:00:20.3]} 48... Kg7 {[%clk 0:00:19.7]} 49. Qxd5 {[%clk 0:00:21]} 1-0